[Event "*** Titled Tuesday Blitz"]
[Site "Chess.com"]
[Date "2020.10.27"]
[Round "4"]
[White "witcher8"]
[Black "Shivagami"]
[Result "0-1"]
[WhiteElo "2422"]
[BlackElo "2265"]
[TimeControl "180+1"]
[EndTime "10:38:48 PDT"]
[Termination "Shivagami won on time"]

1. e4 {[%clk 0:01:30]} 1... c5 {[%clk 0:02:58.7]} 2. Nc3 {[%clk 0:01:29.7]} 2...
e6 {[%clk 0:02:56.2]} 3. f4 {[%clk 0:01:30.2]} 3... d5 {[%clk 0:02:50.9]} 4.
Bb5+ {[%clk 0:01:28.2]} 4... Bd7 {[%clk 0:02:48.3]} 5. Bxd7+ {[%clk 0:01:23.7]}
5... Qxd7 {[%clk 0:02:47.4]} 6. exd5 {[%clk 0:01:24.6]} 6... exd5 {[%clk
0:02:47.5]} 7. Nf3 {[%clk 0:01:24.8]} 7... Bd6 {[%clk 0:02:42.3]} 8. d4 {[%clk
0:01:24]} 8... Qe6+ {[%clk 0:02:26.4]} 9. Kf2 {[%clk 0:01:22.3]} 9... Ne7 {[%clk
0:02:24]} 10. Re1 {[%clk 0:01:18]} 10... Qf5 {[%clk 0:02:23.4]} 11. dxc5 {[%clk
0:00:53.8]} 11... Bxc5+ {[%clk 0:02:18.4]} 12. Be3 {[%clk 0:00:54.3]} 12...
Bxe3+ {[%clk 0:02:13.3]} 13. Rxe3 {[%clk 0:00:55.2]} 13... Nc6 {[%clk
0:01:50.9]} 14. Nxd5 {[%clk 0:00:53.1]} 14... O-O-O {[%clk 0:01:46.9]} 15. Nxe7+
{[%clk 0:00:37.1]} 15... Nxe7 {[%clk 0:01:46.9]} 16. Qe2 {[%clk 0:00:33]} 16...
Nd5 {[%clk 0:01:43.7]} 17. Qc4+ {[%clk 0:00:22.5]} 17... Kb8 {[%clk 0:01:39.9]}
18. Re5 {[%clk 0:00:22.3]} 18... Qxf4 {[%clk 0:01:29.3]} 19. Qxf4 {[%clk
0:00:22.1]} 19... Nxf4 {[%clk 0:01:29.5]} 20. Rf5 {[%clk 0:00:22.7]} 20... Ne6
{[%clk 0:01:17.4]} 21. Rxf7 {[%clk 0:00:21.1]} 21... Rhf8 {[%clk 0:01:09.7]} 22.
Rxf8 {[%clk 0:00:18.4]} 22... Rxf8 {[%clk 0:01:09.7]} 23. Rd1 {[%clk 0:00:18.9]}
23... Kc7 {[%clk 0:01:08.1]} 24. Rd5 {[%clk 0:00:16.4]} 24... Kc6 {[%clk
0:01:02]} 25. c4 {[%clk 0:00:16.5]} 25... Nf4 {[%clk 0:00:56.8]} 26. Rd4 {[%clk
0:00:11.9]} 26... Kc5 {[%clk 0:00:53.6]} 27. b3 {[%clk 0:00:11.5]} 27... Nh3+
{[%clk 0:00:43]} 28. Kg3 {[%clk 0:00:09.2]} 28... Rxf3+ {[%clk 0:00:41.7]} 29.
gxf3 {[%clk 0:00:09.6]} 29... Kxd4 {[%clk 0:00:42.1]} 30. Kxh3 {[%clk
0:00:10.5]} 30... Kc3 {[%clk 0:00:41]} 31. Kg4 {[%clk 0:00:10.7]} 31... Kb2
{[%clk 0:00:32]} 32. b4 {[%clk 0:00:10.4]} 32... Kc3 {[%clk 0:00:32.2]} 33. b5
{[%clk 0:00:02.7]} 33... Kxc4 {[%clk 0:00:32.1]} 34. h4 {[%clk 0:00:03.6]} 34...
Kxb5 {[%clk 0:00:32.1]} 35. Kg5 {[%clk 0:00:03.6]} 35... Kc6 {[%clk 0:00:31.6]}
36. h5 {[%clk 0:00:03.7]} 36... Kd6 {[%clk 0:00:29.6]} 37. h6 {[%clk 0:00:04.6]}
37... g6 {[%clk 0:00:22.5]} 38. Kf6 {[%clk 0:00:04.4]} 38... Kd7 {[%clk
0:00:22.6]} 0-1

[Event "*** Titled Tuesday Blitz"]
[Site "Chess.com"]
[Date "2020.10.27"]
[Round "4"]
[White "HanSchut"]
[Black "TheSodabread"]
[Result "0-1"]
[WhiteElo "2222"]
[BlackElo "1926"]
[TimeControl "180+1"]
[EndTime "10:38:50 PDT"]
[Termination "TheSodabread won by checkmate"]

1. e4 {[%clk 0:03:00.9]} 1... e5 {[%clk 0:02:54.9]} 2. Nf3 {[%clk 0:02:58.3]}
2... Nf6 {[%clk 0:02:50.2]} 3. Bc4 {[%clk 0:02:57.7]} 3... Nxe4 {[%clk
0:02:48.1]} 4. Nc3 {[%clk 0:02:57.4]} 4... Nxc3 {[%clk 0:02:48.6]} 5. dxc3
{[%clk 0:02:58.3]} 5... f6 {[%clk 0:02:48.9]} 6. Nh4 {[%clk 0:02:57.7]} 6... g6
{[%clk 0:02:48.9]} 7. f4 {[%clk 0:02:34.8]} 7... d6 {[%clk 0:02:48.5]} 8. fxe5
{[%clk 0:02:20.7]} 8... dxe5 {[%clk 0:02:49.4]} 9. Bf7+ {[%clk 0:02:18]} 9...
Ke7 {[%clk 0:02:49.3]} 10. Qxd8+ {[%clk 0:02:12.1]} 10... Kxd8 {[%clk
0:02:50.2]} 11. O-O {[%clk 0:02:08.3]} 11... Ke7 {[%clk 0:02:46.1]} 12. Bb3
{[%clk 0:02:06.7]} 12... Be6 {[%clk 0:02:46]} 13. Be3 {[%clk 0:02:01.5]} 13...
Nc6 {[%clk 0:02:42.5]} 14. Rae1 {[%clk 0:01:53.6]} 14... Bxb3 {[%clk 0:02:40.7]}
15. axb3 {[%clk 0:01:50]} 15... Ke6 {[%clk 0:02:40.6]} 16. b4 {[%clk 0:01:47.6]}
16... Ne7 {[%clk 0:02:37]} 17. Bc1 {[%clk 0:01:39.9]} 17... Nf5 {[%clk
0:02:10.7]} 18. Nf3 {[%clk 0:01:34.8]} 18... Bd6 {[%clk 0:02:06.1]} 19. g4
{[%clk 0:01:32.9]} 19... Ne7 {[%clk 0:01:55.4]} 20. Nd4+ {[%clk 0:01:20.4]}
20... Kf7 {[%clk 0:01:53.1]} 21. Nb5 {[%clk 0:01:15.9]} 21... a6 {[%clk
0:01:53.1]} 22. Na3 {[%clk 0:01:13.5]} 22... h5 {[%clk 0:01:48.8]} 23. Bg5
{[%clk 0:01:09.1]} 23... Ng8 {[%clk 0:01:37.6]} 24. h3 {[%clk 0:01:04.7]} 24...
hxg4 {[%clk 0:01:37.3]} 25. hxg4 {[%clk 0:01:04.7]} 25... Ke6 {[%clk 0:01:37.8]}
26. Be3 {[%clk 0:01:02.3]} 26... Ne7 {[%clk 0:01:38]} 27. Nc4 {[%clk 0:01:01]}
27... Nd5 {[%clk 0:01:36.5]} 28. Bf2 {[%clk 0:00:59.7]} 28... Nf4 {[%clk
0:01:33.1]} 29. Bg3 {[%clk 0:00:57.7]} 29... g5 {[%clk 0:01:30.9]} 30. Ne3
{[%clk 0:00:54.7]} 30... Rh3 {[%clk 0:01:28.4]} 31. Nf5 {[%clk 0:00:51.8]} 31...
Rah8 {[%clk 0:01:25.1]} 32. Kf2 {[%clk 0:00:43.5]} 32... Rd8 {[%clk 0:00:52]}
33. Bxf4 {[%clk 0:00:31.8]} 33... gxf4 {[%clk 0:00:47]} 34. Kg2 {[%clk
0:00:32.1]} 34... Rdh8 {[%clk 0:00:42.8]} 35. Ng7+ {[%clk 0:00:32.1]} 35... Kf7
{[%clk 0:00:43.1]} 36. Nh5 {[%clk 0:00:32.5]} 36... Rh4 {[%clk 0:00:39.9]} 37.
Kf3 {[%clk 0:00:31.1]} 37... Rg8 {[%clk 0:00:36.8]} 38. Rg1 {[%clk 0:00:30.9]}
38... Rh3+ {[%clk 0:00:32.7]} 39. Ke4 {[%clk 0:00:28.8]} 39... Rg5 {[%clk
0:00:23.4]} 40. c4 {[%clk 0:00:17.7]} 40... c6 {[%clk 0:00:17.1]} 41. c5 {[%clk
0:00:17.4]} 41... Bc7 {[%clk 0:00:17]} 42. Rd1 {[%clk 0:00:17.4]} 42... Ke6
{[%clk 0:00:16.1]} 43. Rge1 {[%clk 0:00:12.1]} 43... Rxg4 {[%clk 0:00:13.6]} 44.
Rd3 {[%clk 0:00:07.4]} 44... f5# {[%clk 0:00:13.3]} 0-1

[Event "*** Titled Tuesday Blitz"]
[Site "Chess.com"]
[Date "2020.10.27"]
[Round "4"]
[White "ChessQueen"]
[Black "jacky72"]
[Result "1-0"]
[WhiteElo "2732"]
[BlackElo "2519"]
[TimeControl "180+1"]
[EndTime "10:38:51 PDT"]
[Termination "ChessQueen won by checkmate"]

1. e4 {[%clk 0:03:00.9]} 1... e5 {[%clk 0:02:59.7]} 2. Nf3 {[%clk 0:03:00.5]}
2... Nc6 {[%clk 0:02:59]} 3. Bc4 {[%clk 0:03:00.7]} 3... Bc5 {[%clk 0:02:58.7]}
4. d3 {[%clk 0:03:00.7]} 4... Nf6 {[%clk 0:02:58.6]} 5. a4 {[%clk 0:03:00.8]}
5... d6 {[%clk 0:02:58.6]} 6. a5 {[%clk 0:03:00.7]} 6... a6 {[%clk 0:02:58.7]}
7. c3 {[%clk 0:02:54.2]} 7... h6 {[%clk 0:02:56.8]} 8. O-O {[%clk 0:02:53.6]}
8... Ba7 {[%clk 0:02:56.8]} 9. Re1 {[%clk 0:02:53.2]} 9... g5 {[%clk 0:02:55.9]}
10. Be3 {[%clk 0:02:49.3]} 10... g4 {[%clk 0:02:55.2]} 11. Nfd2 {[%clk
0:02:48.4]} 11... Nh5 {[%clk 0:02:51]} 12. d4 {[%clk 0:02:43.3]} 12... Qf6
{[%clk 0:02:47.5]} 13. Nf1 {[%clk 0:02:35]} 13... Bd7 {[%clk 0:02:38.1]} 14. Ng3
{[%clk 0:02:10.6]} 14... Nf4 {[%clk 0:02:35.4]} 15. dxe5 {[%clk 0:02:00.5]}
15... Nxe5 {[%clk 0:02:29.8]} 16. Bf1 {[%clk 0:01:52.9]} 16... Bxe3 {[%clk
0:02:21.6]} 17. Rxe3 {[%clk 0:01:42.5]} 17... O-O-O {[%clk 0:02:18.6]} 18. Nd2
{[%clk 0:01:42.7]} 18... h5 {[%clk 0:02:17.6]} 19. Ne2 {[%clk 0:01:40.1]} 19...
Nfd3 {[%clk 0:02:01]} 20. f3 {[%clk 0:01:22.7]} 20... Qg5 {[%clk 0:01:57.5]} 21.
f4 {[%clk 0:00:44.6]} 21... Nxf4 {[%clk 0:01:56.8]} 22. Nxf4 {[%clk 0:00:44.4]}
22... Qxf4 {[%clk 0:01:57.2]} 23. Qe2 {[%clk 0:00:40.8]} 23... Bb5 {[%clk
0:01:54.3]} 24. Qf2 {[%clk 0:00:41.1]} 24... Qxf2+ {[%clk 0:01:45.6]} 25. Kxf2
{[%clk 0:00:42]} 25... Bxf1 {[%clk 0:01:46.1]} 26. Rxf1 {[%clk 0:00:42.3]} 26...
h4 {[%clk 0:01:30.5]} 27. Ke2 {[%clk 0:00:42.3]} 27... Rdg8 {[%clk 0:01:27.4]}
28. b4 {[%clk 0:00:37.8]} 28... h3 {[%clk 0:01:27.4]} 29. g3 {[%clk 0:00:37.3]}
29... Rg5 {[%clk 0:01:27.6]} 30. Rf4 {[%clk 0:00:35.3]} 30... Re8 {[%clk
0:01:22.5]} 31. Kd1 {[%clk 0:00:30.5]} 31... Re7 {[%clk 0:01:21.2]} 32. Kc2
{[%clk 0:00:30.4]} 32... Ng6 {[%clk 0:01:19.5]} 33. Rf1 {[%clk 0:00:24.5]} 33...
Rge5 {[%clk 0:01:19.9]} 34. Rd3 {[%clk 0:00:21.1]} 34... Kd7 {[%clk 0:01:13.4]}
35. Rf2 {[%clk 0:00:19.8]} 35... Kc6 {[%clk 0:01:12.9]} 36. Rd4 {[%clk 0:00:20]}
36... Rg5 {[%clk 0:01:10.4]} 37. Rf6 {[%clk 0:00:19.8]} 37... Ne5 {[%clk
0:01:08.9]} 38. Rd5 {[%clk 0:00:19.4]} 38... Re6 {[%clk 0:01:06.9]} 39. Rf4
{[%clk 0:00:18.5]} 39... Rg8 {[%clk 0:01:01.6]} 40. c4 {[%clk 0:00:18.8]} 40...
Rge8 {[%clk 0:01:01]} 41. b5+ {[%clk 0:00:18.6]} 41... axb5 {[%clk 0:01:01]} 42.
cxb5+ {[%clk 0:00:19.5]} 42... Kd7 {[%clk 0:01:01.5]} 43. Kc3 {[%clk 0:00:20.4]}
43... Ra8 {[%clk 0:01:01.2]} 44. Kb4 {[%clk 0:00:20.6]} 44... Nd3+ {[%clk
0:01:01.3]} 45. Rxd3 {[%clk 0:00:20.3]} 45... c5+ {[%clk 0:00:56.4]} 46. bxc6+
{[%clk 0:00:20]} 46... bxc6 {[%clk 0:00:56.3]} 47. Rxf7+ {[%clk 0:00:20.5]}
47... Ke8 {[%clk 0:00:56.8]} 48. Rg7 {[%clk 0:00:20.3]} 48... Kf8 {[%clk
0:00:56.1]} 49. Rh7 {[%clk 0:00:20.1]} 49... Kg8 {[%clk 0:00:55.8]} 50. Rb7
{[%clk 0:00:20.3]} 50... d5 {[%clk 0:00:54.1]} 51. exd5 {[%clk 0:00:20]} 51...
Rd6 {[%clk 0:00:54.7]} 52. Nc4 {[%clk 0:00:19.4]} 52... Rxd5 {[%clk 0:00:54.5]}
53. Rxd5 {[%clk 0:00:19.5]} 53... cxd5 {[%clk 0:00:55.4]} 54. Nb6 {[%clk
0:00:19.8]} 54... Re8 {[%clk 0:00:55.1]} 55. a6 {[%clk 0:00:19.8]} 55... Re2
{[%clk 0:00:54.1]} 56. a7 {[%clk 0:00:19.7]} 56... Ra2 {[%clk 0:00:53.1]} 57.
a8=Q+ {[%clk 0:00:19.3]} 57... Rxa8 {[%clk 0:00:53.6]} 58. Nxa8 {[%clk
0:00:20.2]} 58... d4 {[%clk 0:00:53.7]} 59. Kc4 {[%clk 0:00:20.5]} 59... d3
{[%clk 0:00:54.6]} 60. Kxd3 {[%clk 0:00:20.9]} 60... Kh8 {[%clk 0:00:54.3]} 61.
Ke4 {[%clk 0:00:21.1]} 61... Kg8 {[%clk 0:00:55.2]} 62. Ke5 {[%clk 0:00:21.6]}
62... Kh8 {[%clk 0:00:56.1]} 63. Kf6 {[%clk 0:00:21.7]} 63... Kg8 {[%clk
0:00:57]} 64. Rc7 {[%clk 0:00:19.8]} 64... Kh8 {[%clk 0:00:57.9]} 65. Kg6 {[%clk
0:00:19.3]} 65... Kg8 {[%clk 0:00:58.8]} 66. Rc8# {[%clk 0:00:19.4]} 1-0

[Event "*** Titled Tuesday Blitz"]
[Site "Chess.com"]
[Date "2020.10.27"]
[Round "4"]
[White "ChronicUnhappiness"]
[Black "azikom"]
[Result "1-0"]
[WhiteElo "2379"]
[BlackElo "2583"]
[TimeControl "180+1"]
[EndTime "10:38:51 PDT"]
[Termination "ChronicUnhappiness won on time"]

1. c4 {[%clk 0:02:57.7]} 1... e5 {[%clk 0:02:58.3]} 2. g3 {[%clk 0:02:57]} 2...
Nc6 {[%clk 0:02:57.7]} 3. Bg2 {[%clk 0:02:57.6]} 3... h5 {[%clk 0:02:55.5]} 4.
Nc3 {[%clk 0:02:56]} 4... h4 {[%clk 0:02:53.8]} 5. d3 {[%clk 0:02:48.5]} 5...
Bc5 {[%clk 0:02:46.6]} 6. e3 {[%clk 0:02:48.1]} 6... d6 {[%clk 0:02:43.1]} 7. a3
{[%clk 0:02:46.8]} 7... a6 {[%clk 0:02:39.9]} 8. Nd5 {[%clk 0:02:34.6]} 8... Ba7
{[%clk 0:02:36]} 9. Ne2 {[%clk 0:02:31.1]} 9... Nf6 {[%clk 0:02:27.6]} 10. Nec3
{[%clk 0:02:25.6]} 10... Nxd5 {[%clk 0:02:23.2]} 11. Nxd5 {[%clk 0:02:19.4]}
11... Ne7 {[%clk 0:02:19]} 12. Bd2 {[%clk 0:01:54.2]} 12... c6 {[%clk
0:02:13.5]} 13. Nxe7 {[%clk 0:01:44.9]} 13... Qxe7 {[%clk 0:02:10.9]} 14. Bc3
{[%clk 0:01:31.7]} 14... Bf5 {[%clk 0:02:06.9]} 15. Qe2 {[%clk 0:01:21.7]} 15...
Qe6 {[%clk 0:02:02.2]} 16. O-O-O {[%clk 0:01:12.5]} 16... O-O-O {[%clk
0:01:55.7]} 17. e4 {[%clk 0:01:01.2]} 17... Bh3 {[%clk 0:01:46.1]} 18. Bxh3
{[%clk 0:00:54.7]} 18... Qxh3 {[%clk 0:01:44.1]} 19. g4 {[%clk 0:00:54.7]} 19...
g6 {[%clk 0:01:42.6]} 20. f3 {[%clk 0:00:49.1]} 20... f5 {[%clk 0:01:39.6]} 21.
Rhf1 {[%clk 0:00:40.2]} 21... Rhf8 {[%clk 0:01:36.6]} 22. exf5 {[%clk
0:00:31.1]} 22... gxf5 {[%clk 0:01:34.2]} 23. d4 {[%clk 0:00:32]} 23... fxg4
{[%clk 0:01:22.7]} 24. fxg4 {[%clk 0:00:21.7]} 24... Rxf1 {[%clk 0:01:19.5]} 25.
Qxf1 {[%clk 0:00:20.1]} 25... exd4 {[%clk 0:01:07.2]} 26. Qxh3 {[%clk
0:00:17.7]} 26... dxc3 {[%clk 0:01:04.4]} 27. g5+ {[%clk 0:00:16.7]} 27... Kb8
{[%clk 0:01:02.5]} 28. bxc3 {[%clk 0:00:17.6]} 28... Rg8 {[%clk 0:00:58.9]} 29.
Qg4 {[%clk 0:00:16.8]} 29... Bc5 {[%clk 0:00:55]} 30. Kb2 {[%clk 0:00:15.8]}
30... Ka7 {[%clk 0:00:52.1]} 31. g6 {[%clk 0:00:15.6]} 31... Rg7 {[%clk
0:00:47.5]} 32. Rf1 {[%clk 0:00:14.3]} 32... a5 {[%clk 0:00:41.7]} 33. Rf7
{[%clk 0:00:13.8]} 33... Rxf7 {[%clk 0:00:39.6]} 34. gxf7 {[%clk 0:00:13.5]} 1-0

[Event "*** Titled Tuesday Blitz"]
[Site "Chess.com"]
[Date "2020.10.27"]
[Round "4"]
[White "nurgyulsalimova"]
[Black "Gogolev_Artemy"]
[Result "1-0"]
[WhiteElo "2721"]
[BlackElo "2511"]
[TimeControl "180+1"]
[EndTime "10:38:53 PDT"]
[Termination "nurgyulsalimova won on time"]

1. d4 {[%clk 0:03:00.9]} 1... Nf6 {[%clk 0:02:58.1]} 2. Nf3 {[%clk 0:02:59.3]}
2... g6 {[%clk 0:02:55.2]} 3. b3 {[%clk 0:02:59.1]} 3... Bg7 {[%clk 0:02:54]} 4.
Bb2 {[%clk 0:02:59.4]} 4... O-O {[%clk 0:02:52]} 5. Nbd2 {[%clk 0:02:58.8]} 5...
b6 {[%clk 0:02:51.2]} 6. e4 {[%clk 0:02:58.3]} 6... Bb7 {[%clk 0:02:51.3]} 7.
Bd3 {[%clk 0:02:58.4]} 7... d5 {[%clk 0:02:43.7]} 8. Qe2 {[%clk 0:02:54.7]} 8...
dxe4 {[%clk 0:02:36.7]} 9. Nxe4 {[%clk 0:02:52.8]} 9... Nbd7 {[%clk 0:02:26.3]}
10. O-O-O {[%clk 0:02:46.7]} 10... Nxe4 {[%clk 0:02:19.3]} 11. Bxe4 {[%clk
0:02:45.7]} 11... Bxe4 {[%clk 0:02:20]} 12. Qxe4 {[%clk 0:02:46.4]} 12... Nf6
{[%clk 0:02:18.3]} 13. Qe2 {[%clk 0:02:35.7]} 13... a5 {[%clk 0:02:16.5]} 14. a4
{[%clk 0:02:33.1]} 14... c6 {[%clk 0:02:06.6]} 15. Ne5 {[%clk 0:02:24.2]} 15...
Qd6 {[%clk 0:02:05]} 16. Rhe1 {[%clk 0:02:15.6]} 16... Nd5 {[%clk 0:01:45]} 17.
g3 {[%clk 0:02:13.1]} 17... Rfb8 {[%clk 0:01:40.5]} 18. Qc4 {[%clk 0:02:02.6]}
18... Rc8 {[%clk 0:01:27]} 19. f4 {[%clk 0:01:49.8]} 19... Rab8 {[%clk
0:01:15.3]} 20. f5 {[%clk 0:01:37.2]} 20... b5 {[%clk 0:01:08.4]} 21. axb5
{[%clk 0:01:37]} 21... cxb5 {[%clk 0:01:07.7]} 22. Qf1 {[%clk 0:01:36.9]} 22...
Nb4 {[%clk 0:01:02]} 23. fxg6 {[%clk 0:01:01.4]} 23... Nxc2 {[%clk 0:00:46.3]}
24. gxh7+ {[%clk 0:00:33.5]} 24... Kxh7 {[%clk 0:00:29.1]} 25. Qf5+ {[%clk
0:00:31.9]} 25... Kg8 {[%clk 0:00:23.1]} 26. Qxf7+ {[%clk 0:00:31.5]} 26... Kh7
{[%clk 0:00:22.5]} 27. Qf5+ {[%clk 0:00:30.3]} 27... Kg8 {[%clk 0:00:21.2]} 28.
Qf7+ {[%clk 0:00:21]} 28... Kh7 {[%clk 0:00:19.4]} 29. Re4 {[%clk 0:00:18.5]}
29... Na3+ {[%clk 0:00:12.1]} 30. Kd2 {[%clk 0:00:12.6]} 30... Qh6+ {[%clk
0:00:08.2]} 31. Kd3 {[%clk 0:00:12.8]} 31... Rf8 {[%clk 0:00:03.5]} 32. Rh4
{[%clk 0:00:09.3]} 32... Rxf7 {[%clk 0:00:02.8]} 33. Rxh6+ {[%clk 0:00:08]}
33... Bxh6 {[%clk 0:00:01.4]} 34. Nxf7 {[%clk 0:00:08.6]} 1-0

[Event "*** Titled Tuesday Blitz"]
[Site "Chess.com"]
[Date "2020.10.27"]
[Round "4"]
[White "SantoBlue"]
[Black "Natalya_Buksa"]
[Result "1-0"]
[WhiteElo "2835"]
[BlackElo "2549"]
[TimeControl "180+1"]
[EndTime "10:38:55 PDT"]
[Termination "SantoBlue won by checkmate"]

1. e4 {[%clk 0:03:00.9]} 1... c5 {[%clk 0:02:59.9]} 2. Nf3 {[%clk 0:03:00.9]}
2... Nc6 {[%clk 0:03:00.5]} 3. c3 {[%clk 0:03:00.2]} 3... Nf6 {[%clk 0:03:00.1]}
4. e5 {[%clk 0:03:00.2]} 4... Nd5 {[%clk 0:03:00.6]} 5. Bc4 {[%clk 0:02:59.9]}
5... Nb6 {[%clk 0:03:00.4]} 6. Bb3 {[%clk 0:02:59.6]} 6... d6 {[%clk 0:03:00]}
7. exd6 {[%clk 0:02:59.2]} 7... Qxd6 {[%clk 0:03:00.9]} 8. O-O {[%clk 0:02:58]}
8... Be6 {[%clk 0:03:01]} 9. a4 {[%clk 0:02:53.3]} 9... Bxb3 {[%clk 0:02:46.8]}
10. Qxb3 {[%clk 0:02:54.2]} 10... Qd7 {[%clk 0:02:47]} 11. a5 {[%clk 0:02:45]}
11... Nd5 {[%clk 0:02:46.9]} 12. a6 {[%clk 0:02:43.4]} 12... b6 {[%clk
0:02:46.9]} 13. Na3 {[%clk 0:02:40.7]} 13... e6 {[%clk 0:02:46.8]} 14. Nc4
{[%clk 0:02:38.5]} 14... Bd6 {[%clk 0:02:38.8]} 15. d4 {[%clk 0:02:25.3]} 15...
cxd4 {[%clk 0:02:34.4]} 16. cxd4 {[%clk 0:02:26.2]} 16... O-O {[%clk 0:02:33]}
17. Bg5 {[%clk 0:02:21.2]} 17... h6 {[%clk 0:02:31.3]} 18. Bh4 {[%clk 0:02:21]}
18... Bc7 {[%clk 0:02:18.6]} 19. Bg3 {[%clk 0:02:14.3]} 19... Nf4 {[%clk
0:02:07.4]} 20. Qe3 {[%clk 0:02:02.1]} 20... Ng6 {[%clk 0:01:38.3]} 21. Nfe5
{[%clk 0:01:57.3]} 21... Bxe5 {[%clk 0:01:36.7]} 22. dxe5 {[%clk 0:01:57.1]}
22... Qd4 {[%clk 0:01:32.1]} 23. Qxd4 {[%clk 0:01:49.2]} 23... Nxd4 {[%clk
0:01:33]} 24. Rfd1 {[%clk 0:01:49.6]} 24... Rfd8 {[%clk 0:01:28.2]} 25. Kf1
{[%clk 0:01:47.1]} 25... Ne7 {[%clk 0:01:10.4]} 26. Nd6 {[%clk 0:01:42.8]} 26...
Ndf5 {[%clk 0:00:45]} 27. Rac1 {[%clk 0:01:39.2]} 27... Nxg3+ {[%clk 0:00:27.7]}
28. hxg3 {[%clk 0:01:38.8]} 28... Nd5 {[%clk 0:00:28.3]} 29. Rd4 {[%clk
0:01:25.1]} 29... Rd7 {[%clk 0:00:28.3]} 30. Rdc4 {[%clk 0:01:24.3]} 30... Rad8
{[%clk 0:00:27.9]} 31. b4 {[%clk 0:01:20.5]} 31... Kf8 {[%clk 0:00:20.1]} 32. b5
{[%clk 0:01:20]} 32... Ke7 {[%clk 0:00:20.4]} 33. Rc8 {[%clk 0:01:18.4]} 33...
Rxc8 {[%clk 0:00:14.1]} 34. Rxc8 {[%clk 0:01:18.3]} 34... Rd8 {[%clk 0:00:14.4]}
35. Rxd8 {[%clk 0:01:16.5]} 35... Kxd8 {[%clk 0:00:14.6]} 36. Nxf7+ {[%clk
0:01:17.2]} 36... Kd7 {[%clk 0:00:14.8]} 37. Nd6 {[%clk 0:01:17.6]} 37... g5
{[%clk 0:00:12.2]} 38. Ke2 {[%clk 0:01:15.5]} 38... Ne7 {[%clk 0:00:08]} 39. Ke3
{[%clk 0:01:14.2]} 39... Ng6 {[%clk 0:00:07.1]} 40. Ke4 {[%clk 0:01:14.7]} 40...
h5 {[%clk 0:00:07.1]} 41. f4 {[%clk 0:01:12.8]} 41... gxf4 {[%clk 0:00:05.9]}
42. gxf4 {[%clk 0:01:13.7]} 42... Nh4 {[%clk 0:00:06.3]} 43. g3 {[%clk
0:01:12.4]} 43... Ng6 {[%clk 0:00:06.9]} 44. f5 {[%clk 0:01:12.1]} 44... exf5+
{[%clk 0:00:07.3]} 45. Nxf5 {[%clk 0:01:11.1]} 45... Ke6 {[%clk 0:00:06.2]} 46.
Nd4+ {[%clk 0:01:11.6]} 46... Kd7 {[%clk 0:00:05.8]} 47. Nc6 {[%clk 0:01:12.5]}
47... h4 {[%clk 0:00:05.5]} 48. gxh4 {[%clk 0:01:12.2]} 48... Nxh4 {[%clk
0:00:06.4]} 49. Nxa7 {[%clk 0:01:12]} 49... Kc7 {[%clk 0:00:06.2]} 50. Nc6
{[%clk 0:01:10.9]} 50... Ng6 {[%clk 0:00:06]} 51. Kf5 {[%clk 0:01:09.8]} 51...
Nf8 {[%clk 0:00:05.7]} 52. e6 {[%clk 0:01:09.5]} 52... Nxe6 {[%clk 0:00:02.5]}
53. Kxe6 {[%clk 0:01:08.4]} 53... Kc8 {[%clk 0:00:03.4]} 54. Ne5 {[%clk
0:01:07.6]} 54... Kc7 {[%clk 0:00:03.7]} 55. Nc4 {[%clk 0:01:07.6]} 55... Kb8
{[%clk 0:00:03.8]} 56. Nxb6 {[%clk 0:01:07.3]} 56... Ka7 {[%clk 0:00:04.7]} 57.
Nc4 {[%clk 0:01:07.2]} 57... Kb8 {[%clk 0:00:05.3]} 58. b6 {[%clk 0:01:06.6]}
58... Ka8 {[%clk 0:00:06.2]} 59. Kd6 {[%clk 0:01:06.5]} 59... Kb8 {[%clk
0:00:06.6]} 60. Kc6 {[%clk 0:01:06.4]} 60... Ka8 {[%clk 0:00:07]} 61. Nd6 {[%clk
0:01:05.3]} 61... Kb8 {[%clk 0:00:07.4]} 62. Nb5 {[%clk 0:01:05.1]} 62... Ka8
{[%clk 0:00:07.8]} 63. b7+ {[%clk 0:01:04.9]} 63... Kb8 {[%clk 0:00:08.2]} 64.
a7# {[%clk 0:01:04.8]} 1-0

[Event "*** Titled Tuesday Blitz"]
[Site "Chess.com"]
[Date "2020.10.27"]
[Round "4"]
[White "boasovietica"]
[Black "MF1966Idrisov"]
[Result "1-0"]
[WhiteElo "2489"]
[BlackElo "2331"]
[TimeControl "180+1"]
[EndTime "10:38:56 PDT"]
[Termination "boasovietica won by checkmate"]

1. e4 {[%clk 0:03:00.9]} 1... c5 {[%clk 0:02:59.7]} 2. Nf3 {[%clk 0:03:00.6]}
2... d6 {[%clk 0:02:59.8]} 3. d4 {[%clk 0:03:00.4]} 3... cxd4 {[%clk 0:02:59.9]}
4. Nxd4 {[%clk 0:03:00.9]} 4... Nf6 {[%clk 0:03:00.2]} 5. Nc3 {[%clk 0:03:01.4]}
5... a6 {[%clk 0:03:00.6]} 6. Be3 {[%clk 0:02:59.3]} 6... e5 {[%clk 0:03:00.7]}
7. Nf3 {[%clk 0:02:59.7]} 7... Be7 {[%clk 0:03:01]} 8. Nd2 {[%clk 0:02:59.2]}
8... Be6 {[%clk 0:03:00.9]} 9. Nc4 {[%clk 0:02:58.1]} 9... O-O {[%clk
0:02:59.2]} 10. Nb6 {[%clk 0:02:54.2]} 10... Ra7 {[%clk 0:02:56.8]} 11. Nbd5
{[%clk 0:02:52.6]} 11... Ra8 {[%clk 0:02:54.7]} 12. Bb6 {[%clk 0:02:45.8]} 12...
Qd7 {[%clk 0:02:52.3]} 13. Nc7 {[%clk 0:02:44.3]} 13... Nc6 {[%clk 0:02:49.2]}
14. Nxa8 {[%clk 0:02:42.4]} 14... Rxa8 {[%clk 0:02:49.1]} 15. Be2 {[%clk
0:02:39.9]} 15... Bd8 {[%clk 0:02:29]} 16. Bxd8 {[%clk 0:02:34.2]} 16... Rxd8
{[%clk 0:02:27.9]} 17. O-O {[%clk 0:02:33.8]} 17... Nd4 {[%clk 0:02:28]} 18. Qd3
{[%clk 0:02:13.8]} 18... b5 {[%clk 0:02:26.5]} 19. Rad1 {[%clk 0:02:08.4]} 19...
Rc8 {[%clk 0:02:18.2]} 20. Rd2 {[%clk 0:00:57.2]} 20... Bc4 {[%clk 0:01:54]} 21.
Qe3 {[%clk 0:00:54.7]} 21... Ng4 {[%clk 0:01:43.2]} 22. Bxg4 {[%clk 0:00:52]}
22... Qxg4 {[%clk 0:01:43]} 23. Re1 {[%clk 0:00:50.2]} 23... f5 {[%clk
0:01:39.2]} 24. f3 {[%clk 0:00:46]} 24... Qh4 {[%clk 0:01:34.5]} 25. Qf2 {[%clk
0:00:44]} 25... Qg5 {[%clk 0:01:31]} 26. exf5 {[%clk 0:00:43.5]} 26... Nxf3+
{[%clk 0:01:13.4]} 27. Qxf3 {[%clk 0:00:44.4]} 27... Qxd2 {[%clk 0:01:12.9]} 28.
Rd1 {[%clk 0:00:37]} 28... Qxc2 {[%clk 0:01:07.3]} 29. Rxd6 {[%clk 0:00:22.7]}
29... Qc1+ {[%clk 0:01:06.1]} 30. Kf2 {[%clk 0:00:19.1]} 30... Qxb2+ {[%clk
0:00:56.2]} 31. Kg3 {[%clk 0:00:19.2]} 31... Bf7 {[%clk 0:00:48]} 32. Ne4 {[%clk
0:00:16.5]} 32... Qxa2 {[%clk 0:00:39.4]} 33. f6 {[%clk 0:00:16.3]} 33... g6
{[%clk 0:00:22.9]} 34. Ng5 {[%clk 0:00:15.2]} 34... Qb3 {[%clk 0:00:18.4]} 35.
Rd3 {[%clk 0:00:07.1]} 35... Qc4 {[%clk 0:00:17]} 36. Rd7 {[%clk 0:00:03.6]}
36... Qb3 {[%clk 0:00:14.6]} 37. Rxf7 {[%clk 0:00:03.4]} 37... Qxf3+ {[%clk
0:00:13.4]} 38. gxf3 {[%clk 0:00:03.2]} 38... h6 {[%clk 0:00:13.8]} 39. Rg7+
{[%clk 0:00:03.4]} 39... Kf8 {[%clk 0:00:14]} 40. Ne6+ {[%clk 0:00:03.9]} 40...
Ke8 {[%clk 0:00:12.4]} 41. Re7# {[%clk 0:00:04.8]} 1-0